bitfinex-derivatives/quotes_SOLF0:USTF0_20250105
["timestamp","ask_amount","ask_price","bid_price","bid_amount"]
[1736077647135,2.3368,214.03,214.0,4.8971]
[1736077647637,2.56,214.08,213.96,75.39111388]
[1736077647839,3.9905,214.07,213.96,77.95111388]
[1736077648436,2.337,214.01,213.97,2.3373]
[1736077652237,2.337,214.01,213.98,2.3373]
[1736077675362,3.9905,214.07,214.0,2.337]
[1736077675560,3.9905,214.07,213.96,77.95111388]
[1736077676265,2.3366,214.05,214.02,2.3368]
[1736077676466,1.4305,214.07,214.02,2.3368]
[1736077677465,2.3364,214.06,214.02,2.3368]
[1736077678768,2.56,214.1,213.97,1.5094]
[1736077678967,2.3362,214.08,213.97,1.5094]
[1736077679168,2.3362,214.08,213.98,1.4024]
[1736077679872,2.3362,214.08,214.03,2.3367]
[1736077680170,3.9522,214.12,214.03,2.3367]
[1736077680466,2.3363,214.07,214.03,2.3367]
[1736077680667,1.3922,214.12,214.01,2.56]
[1736077680869,2.3363,214.08,214.04,2.3365]
[1736077681664,3.9522,214.12,214.04,2.3365]
[1736077681865,2.3363,214.07,214.04,2.3365]
[1736077685672,1.3922,214.12,214.01,2.56]
[1736077686581,2.3362,214.09,214.05,2.3364]
[1736077695792,2.3362,214.09,214.06,2.3364]
[1736077697092,2.3359,214.12,214.08,2.3362]
[1736077697595,2.3361,214.09,214.06,2.3363]
[1736077697789,2.3361,214.09,214.05,4.42113914]
[1736077699492,2.3361,214.09,214.05,6.75763914]
[1736077701693,2.3362,214.08,214.05,6.75763914]
[1736077712902,64.60075673,214.14,214.05,6.75763914]
[1736077713093,2.3361,214.09,214.05,6.75763914]
[1736077727309,2.3361,214.09,214.05,4.42113914]
[1736077727608,2.3361,214.09,214.06,2.3364]
[1736077742021,2.336,214.1,214.06,2.3364]
[1736077751731,2.3361,214.09,214.06,2.3364]
[1736077754028,62.04075673,214.14,214.05,4.42113914]
[1736077754328,2.3367,214.04,214.0,2.3371]
[1736077763341,2.56,214.1,213.98,3.9624]
[1736077763540,2.337,214.01,213.98,4.8973]
[1736077765241,2.337,214.01,213.98,2.3373]
[1736077765442,2.337,214.01,213.97,8.53567164]
[1736077767141,2.337,214.01,213.98,2.3373]
[1736077770551,2.3372,213.99,213.97,3.63827164]
[1736077771750,2.3372,213.99,213.97,3.57043571]
[1736077772952,2.3373,213.98,213.97,3.57043571]
[1736077778159,2.56,214.05,213.97,3.57043571]
[1736077778454,2.3372,213.99,213.97,3.57043571]
[1736077782954,1.3774,214.04,213.93,37.8637995]
[1736077783161,1.3774,214.04,213.89,2.56]
[1736077783162,4.2641,214.04,213.89,2.56]
[1736077783862,2.3371,214.0,213.91,2.3379]
[1736077784058,2.56,214.0,213.91,2.3379]
[1736077784254,2.56,214.0,213.88,1.4023]
[1736077784457,2.56,214.0,213.88,2.3383]
[1736077784654,2.52053575,214.0,213.88,2.3383]
[1736077785057,2.338,213.92,213.88,2.3383]
[1736077785457,53.10508255,213.98,213.87,4.8985]
[1736077785654,53.10508255,213.98,213.85,2.56]
[1736077785862,4.4498,213.97,213.85,2.56]
[1736077786364,4.4498,213.97,213.84,5.2399103]
[1736077787057,2.3383,213.9,213.84,7.5786103]
[1736077787261,2.3383,213.9,213.84,5.2399103]
[1736077787662,2.3383,213.9,213.85,2.3387]
[1736077789662,2.3383,213.9,213.84,5.2399103]
[1736077789864,2.3383,213.9,213.86,2.3386]
[1736077795462,2.3379,213.93,213.89,2.3383]
[1736077795766,7.0098,213.97,213.84,5.2399103]
[1736077796367,2.3376,213.95,213.91,2.338]
[1736077797469,7.0098,213.97,213.84,5.2399103]
[1736077797667,7.0098,213.97,213.88,2.3383]
[1736077798467,2.3381,213.91,213.86,2.3385]
[1736077798663,7.0098,213.97,213.86,2.3385]
[1736077799268,2.3378,213.94,213.86,2.3385]
[1736077799474,7.0098,213.97,213.84,5.2399103]
[1736077799665,7.0098,213.97,213.9,2.3382]
[1736077799966,7.0098,213.97,213.84,5.2399103]
[1736077799967,4.0222,213.97,213.84,5.2399103]
[1736077800166,4.0222,213.97,213.92,2.3379]
[1736077800864,1.4622,213.97,213.92,2.3379]
[1736077801570,2.3375,213.96,213.92,2.3379]
[1736077802169,2.3374,213.97,213.93,2.3378]
[1736077802470,53.10508255,213.98,213.88,2.56]
[1736077802770,53.10508255,213.98,213.89,2.8497]
[1736077802966,53.10508255,213.98,213.95,2.3375]
[1736077803567,53.10508255,213.98,213.96,2.3375]
[1736077804772,53.10508255,213.98,213.89,2.8497]
[1736077805673,53.10508255,213.98,213.91,2.338]
[1736077806070,2.3377,213.95,213.91,2.338]
[1736077806771,2.3377,213.94,213.89,3.9522]
[1736077807070,2.3377,213.94,213.89,2.56]
[1736077807663,53.10508255,213.98,213.85,1.4377]
[1736077807865,53.10508255,213.98,213.87,2.56]
[1736077808472,53.10508255,213.98,213.88,2.3384]
[1736077809874,53.10508255,213.98,213.87,2.56]
[1736077810075,2.3379,213.93,213.89,2.3383]
[1736077820184,2.338,213.92,213.89,2.3383]
[1736077821087,53.10508255,213.98,213.85,3.9977]
[1736077821285,2.3382,213.91,213.87,2.3385]
[1736077824287,2.3384,213.89,213.85,2.3387]
[1736077826390,2.56,213.94,213.85,2.3387]
[1736077826586,2.3384,213.88,213.85,2.3387]
[1736077829390,2.3384,213.88,213.84,7.5787103]
[1736077832594,2.3385,213.87,213.84,7.5787103]
[1736077838296,2.3387,213.86,213.84,5.2399103]
[1736077839191,2.3388,213.84,213.8,2.3392]
[1736077842396,2.56,213.89,213.76,4.0374]
[1736077842699,2.56,213.89,213.76,2.56]
[1736077842898,2.3393,213.8,213.76,2.3397]
[1736077844101,2.3392,213.81,213.77,2.3396]
[1736077844304,2.56,213.83,213.73,7.53838647]
[1736077845003,2.3391,213.82,213.78,2.3394]
[1736077845196,2.56,213.83,213.73,7.53838647]
[1736077846404,2.3392,213.81,213.76,2.3397]
[1736077847402,2.3393,213.8,213.73,7.53838647]
[1736077848305,2.3394,213.79,213.75,2.3398]
[1736077848506,2.3394,213.79,213.73,7.53838647]
[1736077849506,2.3394,213.79,213.76,2.3397]
[1736077849909,2.3394,213.79,213.73,7.53838647]
[1736077850103,2.3394,213.79,213.74,2.3398]
[1736077850405,2.3394,213.79,213.73,7.53838647]
[1736077850600,2.3394,213.79,213.75,2.3398]
[1736077853910,2.3394,213.79,213.73,7.53838647]
[1736077854108,2.3394,213.79,213.76,2.3397]
[1736077856609,2.3393,213.81,213.77,2.3396]
[1736077856805,2.56,213.83,213.73,7.53838647]
[1736077858810,2.56,213.87,213.73,7.53838647]
[1736077859008,2.3388,213.84,213.77,2.3396]
[1736077859311,2.3388,213.84,213.73,7.53838647]
[1736077859917,2.3388,213.84,213.8,2.3392]
[1736077861512,2.3387,213.86,213.81,2.3391]
[1736077861915,2.3387,213.86,213.77,2.56]
[1736077862109,2.3387,213.86,213.83,2.3389]
[1736077862314,2.3384,213.88,213.78,4.4441]
[1736077862914,2.56,213.9,213.78,4.4441]
[1736077862915,2.3383,213.89,213.85,2.3387]
[1736077863512,2.56,213.9,213.78,4.4441]
[1736077863711,2.8566,213.93,213.78,4.4441]
[1736077864010,2.56,213.92,213.78,4.4441]
[1736077864313,2.3385,213.88,213.83,2.3389]
[1736077865916,2.3385,213.88,213.84,2.3388]
[1736077866617,2.3385,213.88,213.78,4.4441]
[1736077867617,2.3385,213.88,213.84,2.3388]
[1736077868213,2.3383,213.9,213.86,2.3386]
[1736077868415,2.3383,213.9,213.82,2.56]
[1736077869214,1.4535,213.97,213.82,2.56]
[1736077869416,2.3379,213.93,213.89,2.3383]
[1736077870121,2.3378,213.94,213.9,2.3381]
[1736077870721,2.3378,213.94,213.91,2.3381]
[1736077870922,2.3378,213.94,213.87,2.56]
[1736077872522,2.3378,213.94,213.9,2.3382]
[1736077872717,2.3377,213.95,213.87,2.56]
[1736077873418,2.3377,213.95,213.91,2.338]
[1736077876124,199.6721,214.1,213.92,2.338]
[1736077876125,2.3375,213.96,213.92,2.338]
[1736077876521,2.56,214.01,213.88,4.3562]
[1736077876919,2.3377,213.95,213.9,2.3381]
[1736077878325,2.56,214.01,213.88,4.3562]
[1736077878515,2.3379,213.93,213.89,2.3383]
[1736077878920,2.56,214.01,213.88,4.3562]
[1736077879120,2.3382,213.91,213.87,2.3384]
[1736077881029,2.56,213.96,213.88,2.3384]
[1736077882629,2.338,213.92,213.88,2.3384]
[1736077882822,2.56,213.96,213.87,2.3384]
[1736077883127,2.3379,213.94,213.84,2.56]
[1736077883427,2.3379,213.94,213.89,2.3382]
[1736077883825,2.3379,213.94,213.84,2.56]
[1736077885035,2.56,213.96,213.84,2.56]
[1736077885328,2.338,213.92,213.84,2.56]
[1736077886335,2.338,213.92,213.88,2.3383]
[1736077890239,2.338,213.92,213.89,2.3383]
[1736077893343,2.3385,213.87,213.83,2.3389]
[1736077893637,2.3385,213.87,213.8,7.0042]
[1736077893842,2.3385,213.87,213.83,2.3389]
[1736077898241,2.3385,213.87,213.84,2.3388]
[1736077898438,2.3384,213.88,213.84,2.3388]
[1736077898941,1.4045,213.95,213.8,7.0042]
[1736077899137,2.3383,213.89,213.85,2.3387]
[1736077901251,2.339,213.83,213.79,37.85977595]
[1736077901546,2.56,213.84,213.77,6.51809412]
[1736077901744,2.56,213.84,213.75,26.0723765]
[1736077901947,2.56,213.84,213.76,2.3397]
[1736077902248,2.56,213.84,213.75,26.0723765]
[1736077902449,2.8565,213.94,213.75,28.6323765]
[1736077902749,3.31622952,213.93,213.75,2.56]
[1736077902951,2.3387,213.85,213.8,2.3393]
[1736077903650,2.3389,213.84,213.8,2.3393]
[1736077907956,2.3389,213.84,213.79,2.3394]
[1736077914461,2.3389,213.84,213.8,2.3393]
[1736077920765,2.3389,213.84,213.77,2.56]
[1736077920965,2.3389,213.84,213.81,2.3391]
[1736077923370,2.3385,213.88,213.84,2.3388]
[1736077923671,2.56,213.92,213.77,2.56]
[1736077924257,2.56,213.92,213.85,2.3386]
[1736077924258,2.3384,213.89,213.85,2.3386]
[1736077925568,2.3384,213.89,213.86,2.3386]
[1736077929169,2.3384,213.89,213.82,2.56]
[1736077929470,2.3384,213.89,213.85,2.3388]
[1736077930065,2.3383,213.91,213.87,2.3386]
[1736077930464,2.56,213.93,213.86,2.3387]
[1736077930465,2.3384,213.89,213.86,2.3387]
[1736077938066,2.3384,213.89,213.85,2.3388]
[1736077939065,2.3385,213.88,213.85,2.3388]
[1736077939274,2.56,213.93,213.76,4.3106]
[1736077939476,2.56,213.93,213.77,2.56]
[1736077940377,2.3389,213.85,213.81,2.3392]
[1736077941475,2.3389,213.84,213.81,2.3392]
[1736077943777,2.3388,213.85,213.81,2.3392]
[1736077945180,2.3389,213.84,213.81,2.3392]
[1736077946375,5.4165,213.94,213.83,2.3389]
[1736077947677,2.3386,213.88,213.83,2.3389]
[1736077949276,2.3386,213.87,213.83,2.3389]
[1736077954383,5.4165,213.94,213.83,2.3389]
[1736077954683,2.3387,213.86,213.83,2.3389]
[1736077955278,2.3387,213.86,213.81,2.56]
[1736077955485,2.3387,213.86,213.82,2.3391]
[1736077959280,2.3384,213.89,213.8,2.3393]
[1736077959481,2.56,213.89,213.8,2.3393]
[1736077959877,2.339,213.84,213.8,2.3393]
[1736077966598,2.56,213.89,213.8,2.3393]
[1736077966897,2.56,213.89,213.79,2.56]
[1736077967098,2.56,213.89,213.76,1.5146]
[1736077967298,2.3393,213.81,213.76,1.5146]
[1736077968690,1.4956,213.88,213.76,1.5146]
[1736077968888,2.3392,213.82,213.78,2.3395]
[1736077969090,2.56,213.87,213.78,2.3395]
[1736077970596,2.3393,213.81,213.78,2.3395]
[1736077971605,2.3392,213.82,213.78,2.3395]
[1736077981103,4.0556,213.88,213.77,2.56]
[1736077981710,4.0556,213.88,213.76,2.3397]
[1736077981906,2.3395,213.8,213.76,2.3397]
[1736077984510,2.3392,213.82,213.78,2.3395]
[1736077987512,2.3392,213.82,213.79,2.3394]
[1736077990310,2.3392,213.82,213.76,2.56]
[1736077990506,2.3392,213.82,213.78,2.3395]
[1736077991816,4.0556,213.88,213.78,2.3395]
[1736077992112,2.3393,213.81,213.78,2.3395]
[1736077996914,2.3391,213.83,213.79,2.3395]
[1736077999821,51.96021593,213.86,213.79,2.3395]
[1736078000127,2.3392,213.82,213.79,2.3395]
[1736078006423,54.29891593,213.86,213.82,2.339]
[1736078007627,54.29891593,213.86,213.83,2.3389]
[1736078007822,51.96021593,213.86,213.83,2.3389]
[1736078008123,51.96021593,213.86,213.79,2.3393]
[1736078008324,51.96021593,213.86,213.76,2.56]
[1736078008724,51.96021593,213.86,213.84,2.3388]
[1736078008920,2.3384,213.88,213.84,2.3388]
[1736078010623,2.3382,213.9,213.81,2.56]
[1736078011531,2.3382,213.9,213.86,2.3385]
[1736078011935,2.3383,213.89,213.86,2.3385]
[1736078017831,2.3383,213.89,213.81,2.56]
[1736078018033,2.3383,213.89,213.85,2.3387]
[1736078019441,2.3383,213.89,213.81,2.56]
[1736078019736,2.3383,213.89,213.86,2.3386]
[1736078021940,2.3383,213.89,213.85,2.3387]
[1736078024439,2.3384,213.88,213.85,2.3387]
[1736078026444,2.56,213.87,213.75,3.63841022]
[1736078027140,2.56,213.87,213.76,2.56]
[1736078027844,4.8986,213.87,213.81,2.339]
[1736078028138,2.56,213.87,213.75,3.63841022]
[1736078028341,2.3384,213.88,213.83,2.3389]
[1736078028643,4.0399,213.91,213.79,1.5171]
[1736078028839,4.0399,213.91,213.79,3.027]
[1736078029244,2.3384,213.88,213.82,2.339]
[1736078029442,2.3384,213.88,213.79,3.027]
[1736078029945,2.3384,213.88,213.79,4.5465]
[1736078030445,2.3384,213.88,213.83,2.3388]
[1736078033542,4.0399,213.91,213.83,2.3388]
[1736078033740,2.3385,213.87,213.83,2.3388]
[1736078035947,2.3386,213.86,213.83,2.3388]
[1736078046651,2.3386,213.86,213.82,2.339]
[1736078048458,2.3386,213.86,213.83,2.3388]
[1736078052159,4.0399,213.91,213.8,2.56]
[1736078053364,2.3388,213.85,213.81,2.339]
[1736078056471,2.3388,213.85,213.82,2.339]
[1736078057263,4.0399,213.91,213.79,10.74458561]
[1736078057463,4.0399,213.91,213.81,2.3391]
[1736078057464,2.3388,213.84,213.81,2.3391]
[1736078063779,4.0399,213.91,213.79,3.63808561]
[1736078063978,2.339,213.83,213.79,5.97738561]
[1736078077188,2.339,213.83,213.8,2.3392]
[1736078089199,2.3391,213.82,213.79,3.63808561]
[1736078089400,2.3391,213.82,213.78,2.3394]
[1736078089600,2.3391,213.82,213.77,35.52680716]
[1736078089795,2.3391,213.82,213.79,2.3393]
[1736078093505,2.3391,213.82,213.77,35.52680716]
[1736078093696,2.3391,213.82,213.78,2.3394]
[1736078096208,2.3391,213.81,213.78,2.3394]
[1736078098306,51.96040265,213.86,213.77,35.52680716]
[1736078098503,2.339,213.83,213.79,2.3393]
[1736078099911,2.339,213.82,213.79,2.3393]
[1736078101004,51.96040265,213.86,213.77,35.52680716]
[1736078101205,51.96040265,213.86,213.75,2.56]
[1736078101808,51.96040265,213.86,213.75,4.8997]
[1736078102209,51.96040265,213.86,213.75,2.3397]
[1736078102512,2.3394,213.79,213.75,2.3397]
[1736078106915,2.3394,213.79,213.76,2.3397]
[1736078108918,2.3392,213.81,213.78,2.3394]
[1736078110521,2.3391,213.82,213.78,2.3394]
[1736078112018,2.3391,213.81,213.78,2.3394]
[1736078114120,2.3388,213.84,213.8,2.3392]
[1736078114320,2.3388,213.84,213.74,39.51897953]
[1736078114822,2.3388,213.84,213.8,2.3392]
[1736078120624,2.3388,213.84,213.74,3.9867]
[1736078120819,2.3388,213.84,213.81,2.3391]
[1736078122521,2.3388,213.84,213.74,1.4267]
[1736078122723,2.3388,213.84,213.8,2.3392]
[1736078123121,2.3388,213.84,213.74,1.4267]
[1736078123122,2.56,213.88,213.74,1.4267]
[1736078123423,2.56,213.88,213.77,2.3396]
[1736078123628,2.3392,213.81,213.77,2.3396]
[1736078129236,2.3393,213.8,213.77,2.3396]
[1736078129434,2.56,213.86,213.75,2.3397]
[1736078129636,1.4571,213.85,213.75,2.3397]
[1736078130832,1.4571,213.85,213.74,3.9867]
[1736078131032,2.3393,213.8,213.76,2.3397]
[1736078134138,2.3393,213.8,213.74,1.4267]
[1736078134441,2.3393,213.8,213.77,2.3395]
[1736078136338,2.3394,213.79,213.76,2.3397]
[1736078137344,2.3393,213.8,213.76,2.3397]
[1736078138349,2.56,213.84,213.76,2.3397]
[1736078138649,2.3394,213.79,213.76,2.3397]
[1736078142547,2.56,213.84,213.74,1.4267]
[1736078142852,2.3393,213.8,213.77,2.3396]
[1736078150163,2.3391,213.81,213.78,2.3395]
[1736078150563,2.9462,213.87,213.74,1.4267]
[1736078150760,2.339,213.83,213.79,2.3393]
[1736078151254,54.30356445,213.85,213.8,2.3392]
[1736078151657,54.30356445,213.85,213.74,2.8268]
[1736078152861,54.30356445,213.85,213.81,2.3391]
[1736078153761,51.96476445,213.85,213.82,2.3389]
[1736078153961,51.96476445,213.85,213.78,2.56]
[1736078155467,51.96476445,213.85,213.82,2.339]
[1736078156763,2.3385,213.88,213.85,2.3387]
[1736078156964,2.56,213.92,213.79,3.63814259]
[1736078157962,2.3383,213.9,213.82,2.3389]
[1736078158266,2.3383,213.9,213.79,3.63814259]
[1736078158462,2.3383,213.9,213.85,2.3386]
[1736078159366,2.3383,213.9,213.86,2.3386]
[1736078166571,2.3381,213.91,213.86,2.3386]
[1736078166773,5.4411,213.93,213.86,2.3386]
[1736078168375,2.3381,213.91,213.86,2.3386]
[1736078168576,5.4411,213.93,213.86,2.3386]
[1736078168877,2.3382,213.9,213.86,2.3386]
[1736078169375,2.3382,213.9,213.81,1.4015]
[1736078169572,2.3382,213.9,213.87,2.3385]
[1736078170874,2.3382,213.9,213.81,2.8631]
[1736078172478,2.3382,213.9,213.86,2.3386]
[1736078176185,51.94720613,213.95,213.83,2.56]
[1736078177285,2.3377,213.94,213.9,2.3381]
[1736078177880,51.94720613,213.95,213.88,2.56]
[1736078178075,51.94720613,213.95,213.89,2.3382]
[1736078179581,2.3379,213.93,213.89,2.3382]
[1736078182285,2.3377,213.94,213.9,2.3381]
[1736078187089,2.3377,213.94,213.91,2.338]
[1736078187383,51.94720613,213.95,213.91,2.338]
[1736078187589,54.28480613,213.95,213.91,2.338]
[1736078187796,51.94720613,213.95,213.88,1.409]
[1736078187992,51.94720613,213.95,213.92,2.3379]
[1736078192693,54.28480613,213.95,213.92,2.3379]
[1736078195199,54.28480613,213.95,213.91,2.338]
[1736078206412,2.3378,213.94,213.91,2.338]
[1736078207714,51.94720613,213.95,213.88,1.409]
[1736078208012,51.94720613,213.95,213.88,2.56]
[1736078208413,2.338,213.92,213.88,4.8984]
[1736078210420,2.3379,213.93,213.89,2.3383]
[1736078214719,51.94720613,213.95,213.88,2.56]
[1736078215313,51.94720613,213.95,213.9,2.3382]
[1736078215620,51.94720613,213.95,213.88,2.56]
[1736078216523,51.94720613,213.95,213.92,2.3379]
[1736078228828,51.94720613,213.95,213.91,2.56]
[1736078229027,2.8735,214.05,213.91,2.56]
[1736078229227,1.4194,214.04,213.91,2.56]
[1736078229630,3.7561,214.04,214.0,2.3371]
[1736078229826,5.5532,214.1,213.97,2.56]
[1736078230128,6.9726,214.1,213.98,2.56]
[1736078231238,4.4126,214.1,213.98,2.56]
[1736078232528,2.3364,214.06,214.01,2.3369]
[1736078233121,4.4126,214.1,213.94,3.63557876]
[1736078233327,0.756917,214.09,213.97,2.56]
[1736078234434,2.3371,214.0,213.97,2.56]
[1736078234637,2.56,214.06,213.97,2.56]
[1736078234834,2.56,214.06,213.94,3.63557876]
[1736078235733,2.337,214.01,213.96,2.3375]
[1736078236934,2.3369,214.02,213.97,2.3373]
[1736078237234,2.56,214.06,213.94,3.63557876]
[1736078238534,2.3368,214.03,213.98,2.3372]
[1736078239638,2.56,214.06,213.94,3.63557876]
[1736078239639,2.3371,214.0,213.96,2.3374]
[1736078242542,2.3373,213.99,213.94,5.97327876]
[1736078242841,2.56,214.06,213.94,5.97327876]
[1736078243440,2.3368,214.03,213.94,5.97327876]
[1736078243633,2.56,214.06,213.94,5.97327876]
[1736078244046,2.3372,213.99,213.94,5.97327876]
[1736078244741,2.56,214.06,213.94,5.97327876]
[1736078244938,2.56,214.06,213.94,3.63557876]
[1736078245942,2.3375,213.97,213.94,3.63557876]
[1736078251252,2.3367,214.04,213.99,2.3371]
[1736078251543,2.3367,214.04,213.97,2.56]
[1736078252346,2.3367,214.04,214.0,2.3371]
[1736078255749,2.3367,214.04,213.99,2.3372]
[1736078258551,2.3366,214.05,214.01,2.3369]
[1736078264356,2.3364,214.07,214.03,2.3366]
[1736078271361,2.56,214.14,214.02,2.56]
[1736078272463,2.3362,214.08,214.04,2.3366]
[1736078293482,2.3362,214.08,214.05,2.3365]
[1736078295478,2.3362,214.08,214.04,2.3366]
[1736078295879,51.9017337,214.13,214.02,2.56]
[1736078297282,51.9017337,214.13,214.03,2.3367]
[1736078297986,2.3365,214.06,214.02,2.56]
[1736078298181,51.9017337,214.13,213.99,3.63470218]
[1736078298380,3.50627675,214.12,213.99,6.19470218]
[1736078298786,11.43385331,214.12,213.99,6.19470218]
[1736078298986,2.3365,214.06,213.99,6.19470218]
[1736078299486,11.43385331,214.12,213.99,6.19470218]
[1736078300588,11.43385331,214.12,214.01,2.3369]
[1736078300784,11.43385331,214.12,213.99,6.19470218]
[1736078301679,3.50627675,214.12,213.99,6.19470218]
[1736078302582,2.3364,214.07,214.03,2.3367]
[1736078308680,2.3364,214.07,214.04,2.3366]
[1736078310491,2.3364,214.07,213.99,6.19470218]
[1736078310492,2.3364,214.07,214.03,2.3367]
[1736078324199,2.3367,214.04,214.0,2.3371]
[1736078325501,2.3368,214.03,214.0,2.3371]
[1736078327693,2.56,214.08,213.99,3.63470218]
[1736078327899,2.56,214.08,213.96,2.56]
[1736078328097,2.8588,214.07,213.96,2.56]
[1736078328507,2.3367,214.04,213.96,4.8975]
[1736078328707,2.8588,214.07,213.96,4.8975]
[1736078329207,2.3367,214.04,213.97,2.3374]
[1736078329402,2.8588,214.07,213.97,2.3374]
[1736078329602,2.8588,214.07,213.96,2.56]
[1736078330208,2.8588,214.07,213.98,2.3373]
[1736078330907,2.3369,214.03,213.98,2.3373]
[1736078332605,2.3369,214.02,213.98,2.3373]
[1736078336210,2.3369,214.02,213.96,2.56]
[1736078337509,2.3369,214.02,213.98,2.3372]
[1736078340807,2.8588,214.07,213.96,2.56]
[1736078341011,2.3371,214.01,213.97,2.3374]
[1736078355422,2.8588,214.07,213.97,2.3374]
[1736078356128,2.3372,213.99,213.96,2.3375]
[1736078359428,2.3371,214.0,213.97,2.3374]
[1736078360236,2.3369,214.02,213.98,2.3373]
[1736078361535,2.3369,214.02,213.99,2.3372]
[1736078364228,2.3369,214.02,213.95,2.56]
[1736078364428,2.3369,214.02,213.98,2.3373]
[1736078365731,2.3371,214.0,213.96,2.3374]
[1736078370434,2.56,214.07,213.96,2.3374]
[1736078371034,2.3373,213.98,213.95,2.56]
[1736078371741,2.3373,213.98,213.95,4.8976]
[1736078381544,2.56,214.07,213.95,2.56]
[1736078381841,2.3372,213.99,213.96,2.3375]
[1736078386843,3.50715934,214.06,213.95,2.56]
[1736078387040,13.99144934,214.07,213.95,2.56]
[1736078387247,2.56,214.07,213.95,2.56]
[1736078387548,2.3369,214.02,213.95,2.56]
[1736078388447,2.3369,214.02,213.98,2.3372]
[1736078389846,6.9316,214.08,213.93,1.4393]
[1736078390148,2.3371,214.01,213.97,2.3374]
[1736078397057,2.3372,213.99,213.96,2.3375]
[1736078397357,2.3372,213.99,213.94,2.56]
[1736078399455,2.3372,213.99,213.96,2.3375]
[1736078399657,2.3372,213.99,213.94,2.56]
[1736078400061,2.56,214.06,213.95,2.3375]
[1736078400250,2.3373,213.98,213.95,2.3375]
[1736078402257,2.3374,213.97,213.94,4.8977]
[1736078402463,2.56,214.06,213.94,2.56]
[1736078402657,2.56,214.06,213.93,1.4393]
[1736078402859,2.3369,214.03,213.93,3.7771]
[1736078403057,2.56,214.06,213.93,3.7771]
[1736078403455,2.56,214.06,213.92,2.56]
[1736078403658,2.56,214.06,213.91,4.8981]
[1736078404253,2.56,214.06,213.89,1.3877]
[1736078404457,2.3381,213.91,213.87,1.4484]
[1736078404656,2.56,213.99,213.87,1.4484]
[1736078405455,1.4911,213.98,213.84,2.56]
[1736078405652,2.9104,213.98,213.83,2.56]
[1736078405857,2.3384,213.89,213.84,2.3388]
[1736078406160,4.2828,213.98,213.83,2.56]
[1736078407152,2.3379,213.93,213.83,2.56]
[1736078407766,2.3379,213.93,213.87,2.3384]
[1736078408359,2.3379,213.93,213.83,2.56]
[1736078408662,2.3376,213.95,213.83,2.56]
[1736078408966,1.4288,214.07,213.9,2.3382]
[1736078409164,2.3375,213.96,213.91,2.56]
[1736078410063,2.3375,213.96,213.92,2.338]
[1736078416669,2.3375,213.96,213.93,2.3378]
[1736078416871,2.3375,213.96,213.91,2.56]
[1736078417465,2.3375,213.96,213.91,4.898]
[1736078419068,2.3375,213.96,213.92,2.338]
[1736078420167,6.06761696,214.06,213.91,2.56]
[1736078420168,2.56,214.06,213.91,2.56]
[1736078420573,2.3372,213.99,213.95,2.3375]
[1736078424472,2.3373,213.98,213.95,2.3375]
[1736078425875,2.3375,213.96,213.93,2.3378]
[1736078429782,2.56,214.04,213.92,3.63587166]
[1736078429974,2.3377,213.94,213.92,3.63587166]
[1736078430273,2.56,214.04,213.92,3.63587166]
[1736078430483,2.3379,213.93,213.92,3.63587166]
[1736078430774,2.3379,213.93,213.86,35.51063791]
[1736078430980,2.3379,213.93,213.86,38.07063791]
[1736078431772,2.338,213.92,213.88,2.3383]